[Event "Championnat du monde jeunes U12F"]
[Date "2024.11.23"]
[White "Xu, Melissa"]
[Black "Laurincova, Timea"]
[WhiteElo "1731"]
[BlackElo "1549"]
[Round "8.30"]
[Result "1/2-1/2"]
[TimeControl "5400+30"]

1. e4 {[%clk 1:30:53]} 1... c5 {[%clk 1:30:55]} 2. Nc3 {[%clk 1:31:15]} 2... Nc6
{[%clk 1:31:04]} 3. g3 {[%clk 1:31:35]} 3... g6 {[%clk 1:31:02]} 4. Bg2 {[%clk
1:31:45]} 4... Bg7 {[%clk 1:30:56]} 5. d3 {[%clk 1:31:56]} 5... d6 {[%clk
1:31:04]} 6. Be3 {[%clk 1:31:50]} 6... Rb8 {[%clk 1:31:01]} 7. Qd2 {[%clk
1:29:49]} 7... b5 {[%clk 1:30:38]} 8. a3 {[%clk 1:29:20]} 8... a5 {[%clk
1:28:52]} 9. Rb1 {[%clk 1:21:04]} 9... b4 {[%clk 1:27:23]} 10. axb4 {[%clk
1:20:17]} 10... axb4 {[%clk 1:27:39]} 11. Nd1 {[%clk 1:17:52]} 11... h5 {[%clk
1:26:40]} 12. Nf3 {[%clk 1:14:42]} 12... Nd4 {[%clk 1:14:23]} 13. h4 {[%clk
1:12:24]} 13... Nh6 {[%clk 1:11:23]} 14. Nh2 {[%clk 1:07:15]} 14... Ng4 {[%clk
1:08:23]} 15. Nxg4 {[%clk 1:05:51]} 15... Bxg4 {[%clk 1:08:29]} 16. Bxd4 {[%clk
1:04:44]} 16... Bxd4 {[%clk 1:07:21]} 17. f3 {[%clk 1:02:25]} 17... Bd7 {[%clk
1:06:03]} 18. Ne3 {[%clk 0:59:31]} 18... Qc8 {[%clk 1:03:00]} 19. Nc4 {[%clk
0:53:57]} 19... Bg7 {[%clk 0:54:57]} 20. Qe2 {[%clk 0:51:34]} 20... Be6 {[%clk
0:47:55]} 21. Rf1 {[%clk 0:46:16]} 21... Bxc4 {[%clk 0:42:59]} 22. dxc4 {[%clk
0:45:25]} 22... Ra8 {[%clk 0:42:37]} 23. Qd3 {[%clk 0:41:01]} 23... Qe6 {[%clk
0:40:08]} 24. Rh1 {[%clk 0:35:32]} 24... Qe5 {[%clk 0:38:06]} 25. f4 {[%clk
0:33:35]} 25... Qd4 {[%clk 0:37:51]} 26. Qxd4 {[%clk 0:31:07]} 26... Bxd4 {[%clk
0:38:08]} 27. Kd1 {[%clk 0:26:32]} 27... e6 {[%clk 0:33:06]} 28. Rf1 {[%clk
0:25:40]} 28... Ke7 {[%clk 0:29:22]} 29. Kd2 {[%clk 0:25:17]} 29... Ra2 {[%clk
0:27:16]} 30. b3 {[%clk 0:23:53]} 30... Rha8 {[%clk 0:24:20]} 31. e5 {[%clk
0:22:08]} 31... R8a7 {[%clk 0:23:31]} 32. exd6+ {[%clk 0:21:36]} 32... Kxd6
{[%clk 0:23:48]} 33. Kd3 {[%clk 0:16:44]} 33... Bc3 {[%clk 0:18:56]} 34. Rbd1
{[%clk 0:14:45]} 34... Ke7 {[%clk 0:17:41]} 35. Bc6 {[%clk 0:14:21]} 35... Rb2
{[%clk 0:16:18]} 36. Ba4 {[%clk 0:14:32]} 36... Ra2 {[%clk 0:15:48]} 37. Rc1
{[%clk 0:13:10]} 37... Ra8 {[%clk 0:13:52]} 38. Ke2 {[%clk 0:08:35]} 38... Rd8
{[%clk 0:12:44]} 39. Rfd1 {[%clk 0:06:39]} 39... Rxd1 {[%clk 0:09:54]} 40. Kxd1
{[%clk 0:07:00]} 40... Ra1 {[%clk 0:09:13]} 41. Rxa1 {[%clk 0:07:25]} 41... Bxa1
{[%clk 0:09:31]} 42. Ke2 {[%clk 0:07:24]} 42... e5 {[%clk 0:09:49]} 43. fxe5
{[%clk 0:06:53]} 43... Bxe5 {[%clk 0:10:07]} 44. Kf3 {[%clk 0:07:11]} 44... Kf6
{[%clk 0:10:00]} 1/2-1/2

[Variant "Standard"]
[Site "Europe Echecs"]

[Event "Championnat du monde jeunes U12F"]
[Date "2024.11.23"]
[White "Moscovitch, Shelly"]
[Black "Tsinjoviniavo, Aina Mahasambatra"]
[WhiteElo "1552"]
[BlackElo "1716"]
[Round "8.31"]
[Result "1-0"]
[TimeControl "5400+30"]

1. e4 {[%clk 1:30:32]} 1... c5 {[%clk 1:30:09]} 2. Nf3 {[%clk 1:30:05]} 2... Nc6
{[%clk 1:30:00]} 3. c3 {[%clk 1:29:12]} 3... d5 {[%clk 1:29:18]} 4. exd5 {[%clk
1:28:20]} 4... Qxd5 {[%clk 1:29:41]} 5. d4 {[%clk 1:27:42]} 5... Bg4 {[%clk
1:28:17]} 6. Be2 {[%clk 1:26:06]} 6... Nf6 {[%clk 1:27:48]} 7. O-O {[%clk
1:24:30]} 7... e6 {[%clk 1:25:16]} 8. c4 {[%clk 1:22:17]} 8... Qd7 {[%clk
1:24:30]} 9. dxc5 {[%clk 1:20:41]} 9... Bxc5 {[%clk 1:24:56]} 10. Qxd7+ {[%clk
1:18:58]} 10... Nxd7 {[%clk 1:25:20]} 11. Nc3 {[%clk 1:18:01]} 11... O-O {[%clk
1:25:21]} 12. Rd1 {[%clk 1:12:32]} 12... Nb6 {[%clk 1:25:34]} 13. b3 {[%clk
1:09:32]} 13... Rad8 {[%clk 1:22:48]} 14. Bb2 {[%clk 1:07:40]} 14... Bf5 {[%clk
1:22:24]} 15. Rac1 {[%clk 1:04:17]} 15... h6 {[%clk 1:19:21]} 16. h3 {[%clk
0:57:55]} 16... e5 {[%clk 1:18:20]} 17. Nd5 {[%clk 0:53:10]} 17... e4 {[%clk
1:17:01]} 18. Nd4 {[%clk 0:45:53]} 18... Nxd4 {[%clk 1:15:53]} 19. Bxd4 {[%clk
0:45:07]} 19... Bxd4 {[%clk 1:13:32]} 20. Rxd4 {[%clk 0:44:43]} 20... Nxd5
{[%clk 1:13:49]} 21. cxd5 {[%clk 0:43:46]} 21... Rc8 {[%clk 1:13:54]} 22. Rdc4
{[%clk 0:39:52]} 22... Rxc4 {[%clk 1:12:48]} 23. bxc4 {[%clk 0:39:21]} 23... b6
{[%clk 1:13:00]} 24. Kf1 {[%clk 0:37:55]} 24... Bd7 {[%clk 1:10:35]} 25. Ra1
{[%clk 0:34:43]} 25... Rc8 {[%clk 1:08:39]} 26. Ke1 {[%clk 0:33:01]} 26... f5
{[%clk 1:06:49]} 27. Kd2 {[%clk 0:31:43]} 27... Kf7 {[%clk 1:05:05]} 28. Ke3
{[%clk 0:30:26]} 28... Kf6 {[%clk 1:05:13]} 29. Kd4 {[%clk 0:29:18]} 29... Rc5
{[%clk 1:04:06]} 30. Rb1 {[%clk 0:17:50]} 30... Ra5 {[%clk 1:04:17]} 31. Rb2
{[%clk 0:17:17]} 31... Ra4 {[%clk 1:04:32]} 32. Bd1 {[%clk 0:16:15]} 32... Ra3
{[%clk 1:05:00]} 33. Rd2 {[%clk 0:13:00]} 33... Ba4 {[%clk 0:54:00]} 34. Bxa4
{[%clk 0:12:07]} 34... Rxa4 {[%clk 0:54:26]} 35. Kc3 {[%clk 0:11:18]} 35... Ke7
{[%clk 0:53:05]} 36. Kb3 {[%clk 0:09:50]} 36... Ra5 {[%clk 0:53:21]} 37. Kb4
{[%clk 0:08:01]} 37... Kd6 {[%clk 0:53:21]} 38. a4 {[%clk 0:07:48]} 38... Rc5
{[%clk 0:52:11]} 39. Ra2 {[%clk 0:07:29]} 39... a5+ {[%clk 0:52:08]} 40. Kc3
{[%clk 0:07:23]} 40... Ke5 {[%clk 0:51:45]} 41. Rb2 {[%clk 0:07:20]} 41... Rc7
{[%clk 0:51:16]} 42. Rxb6 {[%clk 0:07:23]} 42... f4 {[%clk 0:50:30]} 43. Re6+
{[%clk 0:04:29]} 43... Kf5 {[%clk 0:50:52]} 44. Kd4 {[%clk 0:04:36]} 44... f3
{[%clk 0:51:04]} 45. g3 {[%clk 0:03:37]} 45... h5 {[%clk 0:50:44]} 46. Rxe4
{[%clk 0:03:42]} 46... Rxc4+ {[%clk 0:50:49]} 47. Kxc4 {[%clk 0:03:57]} 47...
Kxe4 {[%clk 0:51:16]} 48. d6 {[%clk 0:04:17]} 48... h4 {[%clk 0:51:11]} 49. g4
{[%clk 0:03:54]} 49... g5 {[%clk 0:51:28]} 50. d7 {[%clk 0:04:19]} 1-0

[Variant "Standard"]
[Site "Europe Echecs"]

[Event "Championnat du monde jeunes U12F"]
[Date "2024.11.23"]
[White "Liang, Candice"]
[Black "Liu, Jingyu"]
[WhiteElo "1551"]
[BlackElo "1680"]
[Round "8.32"]
[Result "1/2-1/2"]
[TimeControl "5400+30"]

1. d4 {[%clk 1:30:58]} 1... d5 {[%clk 1:30:54]} 2. c4 {[%clk 1:30:56]} 2... e6
{[%clk 1:31:17]} 3. Nc3 {[%clk 1:31:21]} 3... Nf6 {[%clk 1:31:42]} 4. cxd5
{[%clk 1:31:44]} 4... exd5 {[%clk 1:32:08]} 5. Bg5 {[%clk 1:32:00]} 5... c6
{[%clk 1:32:28]} 6. e3 {[%clk 1:32:25]} 6... Be7 {[%clk 1:32:52]} 7. Bd3 {[%clk
1:32:46]} 7... h6 {[%clk 1:33:15]} 8. Bh4 {[%clk 1:33:10]} 8... O-O {[%clk
1:33:38]} 9. Nge2 {[%clk 1:33:34]} 9... Re8 {[%clk 1:33:57]} 10. O-O {[%clk
1:33:32]} 10... b5 {[%clk 1:32:56]} 11. f3 {[%clk 1:33:07]} 11... Na6 {[%clk
1:32:06]} 12. a3 {[%clk 1:31:10]} 12... Nc7 {[%clk 1:29:11]} 13. Bf2 {[%clk
1:29:40]} 13... a5 {[%clk 1:23:53]} 14. Kh1 {[%clk 1:26:06]} 14... Ba6 {[%clk
1:21:35]} 15. e4 {[%clk 1:23:37]} 15... dxe4 {[%clk 1:19:51]} 16. fxe4 {[%clk
1:21:04]} 16... Bf8 {[%clk 1:10:02]} 17. Bh4 {[%clk 1:08:58]} 17... Be7 {[%clk
1:03:56]} 18. Rc1 {[%clk 0:57:03]} 18... Ne6 {[%clk 0:41:59]} 19. Bf2 {[%clk
0:54:06]} 19... b4 {[%clk 0:37:32]} 20. axb4 {[%clk 0:49:56]} 20... axb4 {[%clk
0:37:52]} 21. Nb1 {[%clk 0:49:31]} 21... Bxd3 {[%clk 0:34:36]} 22. Qxd3 {[%clk
0:49:50]} 22... Nc5 {[%clk 0:33:26]} 23. Qc4 {[%clk 0:46:40]} 23... Ncxe4 {[%clk
0:33:28]} 24. Qxc6 {[%clk 0:45:34]} 24... Nxf2+ {[%clk 0:33:07]} 25. Rxf2 {[%clk
0:45:58]} 25... Rc8 {[%clk 0:32:59]} 26. Qxc8 {[%clk 0:44:28]} 26... Qxc8 {[%clk
0:33:23]} 27. Rxc8 {[%clk 0:44:52]} 27... Rxc8 {[%clk 0:33:51]} 28. Kg1 {[%clk
0:38:46]} 28... Nd5 {[%clk 0:29:28]} 29. b3 {[%clk 0:29:49]} 29... Rc2 {[%clk
0:28:44]} 30. Ng3 {[%clk 0:28:43]} 1/2-1/2

[Variant "Standard"]
[Site "Europe Echecs"]

[Event "Championnat du monde jeunes U12F"]
[Date "2024.11.23"]
[White "Stepankova, Linda"]
[Black "Hrckova, Anna"]
[WhiteElo "1624"]
[BlackElo "1441"]
[Round "8.33"]
[Result "1/2-1/2"]
[TimeControl "5400+30"]

1. d4 {[%clk 1:30:41]} 1... Nf6 {[%clk 1:30:54]} 2. c4 {[%clk 1:30:31]} 2... g6
{[%clk 1:30:42]} 3. Nc3 {[%clk 1:30:11]} 3... d6 {[%clk 1:30:37]} 4. e4 {[%clk
1:23:31]} 4... Nbd7 {[%clk 1:27:37]} 5. Nge2 {[%clk 1:14:49]} 5... c5 {[%clk
1:25:48]} 6. g3 {[%clk 1:08:20]} 6... Bg7 {[%clk 1:19:48]} 7. Bg2 {[%clk
1:05:28]} 7... O-O {[%clk 1:16:22]} 8. O-O {[%clk 1:04:50]} 8... Ne8 {[%clk
1:11:06]} 9. Be3 {[%clk 0:54:33]} 9... cxd4 {[%clk 1:10:07]} 10. Nxd4 {[%clk
0:52:02]} 10... e5 {[%clk 1:09:00]} 11. Ndb5 {[%clk 0:36:15]} 11... Nb6 {[%clk
1:04:05]} 12. c5 {[%clk 0:31:31]} 12... Nc4 {[%clk 1:03:47]} 13. Bc1 {[%clk
0:21:17]} 13... a6 {[%clk 1:00:46]} 14. Qa4 {[%clk 0:19:46]} 14... Be6 {[%clk
0:57:44]} 15. Nxd6 {[%clk 0:18:52]} 15... Ncxd6 {[%clk 0:56:16]} 16. cxd6 {[%clk
0:19:15]} 16... Nxd6 {[%clk 0:42:45]} 17. Rd1 {[%clk 0:18:22]} 17... Qe7 {[%clk
0:37:47]} 18. b3 {[%clk 0:10:34]} 18... Rfd8 {[%clk 0:35:13]} 19. Ba3 {[%clk
0:09:36]} 19... Qc7 {[%clk 0:34:43]} 20. Rac1 {[%clk 0:08:56]} 20... Qb6 {[%clk
0:19:49]} 21. Bb4 {[%clk 0:03:53]} 21... Nb5 22. Rxd8+ {[%clk 0:01:56]} 22...
Qxd8 {[%clk 0:15:17]} 23. Nxb5 {[%clk 0:01:37]} 23... Bd7 {[%clk 0:14:19]} 24.
Qa3 {[%clk 0:00:45]} 24... Bxb5 {[%clk 0:13:52]} 25. Qb2 {[%clk 0:00:48]} 25...
a5 {[%clk 0:11:41]} 26. Ba3 {[%clk 0:00:41]} 26... Bh6 {[%clk 0:11:42]} 27. Re1
{[%clk 0:00:39]} 27... Bg7 {[%clk 0:10:16]} 28. Qb1 {[%clk 0:00:40]} 28... Bh6
{[%clk 0:09:15]} 29. Rd1 {[%clk 0:00:39]} 29... Qc8 {[%clk 0:09:04]} 30. Bb2
{[%clk 0:00:50]} 30... f6 {[%clk 0:08:00]} 31. Bc1 {[%clk 0:00:40]} 31... Bg7
{[%clk 0:08:12]} 32. Be3 {[%clk 0:00:37]} 32... Qe8 {[%clk 0:08:13]} 33. a3
{[%clk 0:00:38]} 33... Rd8 {[%clk 0:08:20]} 34. Bf1 {[%clk 0:00:41]} 34... Bxf1
{[%clk 0:06:50]} 35. Rxf1 {[%clk 0:00:47]} 35... Bf8 {[%clk 0:07:04]} 36. Qa2
{[%clk 0:00:40]} 36... Qe6 {[%clk 0:07:16]} 37. Ra1 {[%clk 0:00:36]} 37... b5
{[%clk 0:06:47]} 38. a4 {[%clk 0:00:39]} 38... b4 {[%clk 0:06:32]} 39. Rc1
{[%clk 0:00:34]} 39... Rd3 {[%clk 0:06:23]} 40. Rb1 {[%clk 0:00:48]} 40... f5
{[%clk 0:05:55]} 41. exf5 {[%clk 0:00:53]} 41... gxf5 {[%clk 0:06:16]} 42. Kf1
{[%clk 0:00:39]} 42... Qa6 {[%clk 0:05:44]} 43. Kg1 {[%clk 0:00:35]} 43... Qe6
{[%clk 0:05:49]} 44. Kf1 {[%clk 0:00:46]} 44... Qa6 {[%clk 0:06:09]} 1/2-1/2

[Variant "Standard"]
[Site "Europe Echecs"]

[Event "Championnat du monde jeunes U12F"]
[Date "2024.11.23"]
[White "Huang, Lucia"]
[Black "Yang, Hayeon"]
[WhiteElo "1621"]
[BlackElo "1482"]
[Round "8.34"]
[Result "1-0"]
[TimeControl "5400+30"]

1. e4 {[%clk 1:30:59]} 1... e5 {[%clk 1:30:50]} 2. Nf3 {[%clk 1:31:25]} 2... Nc6
{[%clk 1:31:00]} 3. Bc4 {[%clk 1:31:50]} 3... Bc5 {[%clk 1:31:14]} 4. O-O {[%clk
1:32:15]} 4... Nf6 {[%clk 1:31:14]} 5. d3 h6 {[%clk 1:31:20]} 6. c3 {[%clk
1:33:00]} 6... O-O {[%clk 1:30:43]} 7. a4 {[%clk 1:33:12]} 7... a6 {[%clk
1:31:06]} 8. Na3 {[%clk 1:33:31]} 8... d6 {[%clk 1:31:09]} 9. h3 {[%clk
1:33:51]} 9... Be6 {[%clk 1:31:14]} 10. Re1 {[%clk 1:32:12]} 10... Na5 {[%clk
1:30:05]} 11. Bxe6 {[%clk 1:32:19]} 11... fxe6 {[%clk 1:30:23]} 12. b4 {[%clk
1:32:41]} 12... Bxb4 {[%clk 1:29:44]} 13. cxb4 {[%clk 1:33:05]} 13... Nc6 {[%clk
1:29:48]} 14. Qb3 {[%clk 1:32:46]} 14... Qd7 {[%clk 1:27:23]} 15. Bb2 {[%clk
1:31:37]} 15... Nh5 {[%clk 1:25:26]} 16. Rad1 {[%clk 1:28:23]} 16... Nf4 {[%clk
1:22:40]} 17. d4 {[%clk 1:28:30]} 17... exd4 {[%clk 1:15:57]} 18. Nxd4 {[%clk
1:28:32]} 18... Nxd4 {[%clk 1:15:47]} 19. Bxd4 {[%clk 1:28:47]} 19... Kh8 {[%clk
1:14:23]} 20. Nc4 {[%clk 1:21:56]} 20... Qe7 {[%clk 1:12:36]} 21. e5 {[%clk
1:13:02]} 21... d5 {[%clk 1:06:06]} 22. Nb2 {[%clk 1:09:54]} 22... b6 {[%clk
1:01:46]} 23. b5 {[%clk 1:05:13]} 23... axb5 {[%clk 1:00:55]} 24. axb5 {[%clk
1:05:36]} 24... Ra3 {[%clk 0:59:16]} 25. Qc2 {[%clk 1:05:05]} 25... Qg5 {[%clk
0:57:33]} 26. f3 {[%clk 0:22:04]} 26... Nxh3+ {[%clk 0:41:27]} 27. Kh2 {[%clk
0:16:03]} 27... Nf4 {[%clk 0:38:31]} 28. Nd3 {[%clk 0:14:49]} 28... Qf5 {[%clk
0:37:18]} 29. Re3 {[%clk 0:12:00]} 29... c5 {[%clk 0:36:17]} 30. bxc6 {[%clk
0:12:18]} 30... b5 {[%clk 0:35:40]} 31. Bc5 {[%clk 0:12:30]} 31... Nxd3 {[%clk
0:35:03]} 32. Bxf8 {[%clk 0:10:31]} 32... Qf4+ {[%clk 0:33:22]} 33. g3 {[%clk
0:10:53]} 33... Ra8 1-0

[Variant "Standard"]
[Site "Europe Echecs"]

[Event "Championnat du monde jeunes U12F"]
[Date "2024.11.23"]
[White "Mrad, Anahid"]
[Black "Radenkovic, Lena"]
[WhiteElo "1558"]
[BlackElo "1675"]
[Round "8.35"]
[Result "0-1"]
[TimeControl "5400+30"]

1. e4 {[%clk 1:30:57]} 1... e5 {[%clk 1:29:28]} 2. Nf3 {[%clk 1:31:18]} 2... Nc6
{[%clk 1:28:15]} 3. Bc4 {[%clk 1:31:35]} 3... Bc5 {[%clk 1:27:02]} 4. c3 {[%clk
1:31:57]} 4... Bb6 {[%clk 1:24:20]} 5. d4 {[%clk 1:28:35]} 5... exd4 {[%clk
1:19:07]} 6. cxd4 {[%clk 1:26:44]} 6... d6 {[%clk 1:15:16]} 7. O-O {[%clk
1:24:10]} 7... Nf6 {[%clk 1:09:42]} 8. Nc3 {[%clk 1:22:17]} 8... Bg4 {[%clk
1:08:22]} 9. h3 {[%clk 1:21:28]} 9... Bxf3 {[%clk 1:07:47]} 10. Qxf3 {[%clk
1:21:39]} 10... Bxd4 {[%clk 1:07:19]} 11. Qg3 {[%clk 1:16:34]} 11... Qd7 {[%clk
0:56:17]} 12. Be3 {[%clk 1:09:55]} 12... Be5 {[%clk 0:52:53]} 13. f4 {[%clk
1:09:19]} 13... Bxc3 {[%clk 0:47:12]} 14. bxc3 {[%clk 1:09:31]} 14... O-O-O
{[%clk 0:46:44]} 15. e5 {[%clk 1:07:39]} 15... Ne4 {[%clk 0:40:40]} 16. Qf3
{[%clk 1:05:05]} 16... d5 {[%clk 0:39:33]} 17. Bb3 {[%clk 0:58:17]} 17... Nxc3
{[%clk 0:35:52]} 18. Bxa7 {[%clk 0:54:37]} 18... d4 {[%clk 0:30:42]} 19. Bc5
{[%clk 0:52:23]} 19... Qf5 {[%clk 0:26:05]} 20. Rfe1 {[%clk 0:47:39]} 20... Rde8
{[%clk 0:22:13]} 21. a4 {[%clk 0:45:57]} 21... g5 {[%clk 0:18:36]} 22. a5 {[%clk
0:38:32]} 22... Qxf4 {[%clk 0:16:01]} 23. Qxf4 {[%clk 0:38:51]} 23... gxf4
{[%clk 0:16:27]} 24. Bxf7 {[%clk 0:38:47]} 24... Rd8 {[%clk 0:16:10]} 25. a6
{[%clk 0:37:07]} 25... bxa6 {[%clk 0:13:39]} 26. Rxa6 {[%clk 0:37:07]} 26... Kd7
{[%clk 0:13:26]} 27. e6+ {[%clk 0:35:22]} 27... Kc8 {[%clk 0:13:46]} 28. Rxc6
{[%clk 0:31:13]} 28... d3 {[%clk 0:12:22]} 29. e7 {[%clk 0:27:43]} 29... d2
{[%clk 0:11:55]} 30. exd8=Q+ {[%clk 0:27:41]} 30... Rxd8 {[%clk 0:12:01]} 31.
Ra1 {[%clk 0:27:15]} 31... d1=Q+ {[%clk 0:11:54]} 32. Rxd1 {[%clk 0:27:38]}
32... Rxd1+ {[%clk 0:12:12]} 33. Kh2 {[%clk 0:26:43]} 33... Ne4 {[%clk 0:10:32]}
34. Bb4 {[%clk 0:25:35]} 34... Ng3 {[%clk 0:10:06]} 35. Be6+ {[%clk 0:19:54]}
35... Kb7 {[%clk 0:09:54]} 36. Rxc7+ {[%clk 0:19:30]} 36... Kxc7 {[%clk
0:10:02]} 37. Ba5+ {[%clk 0:19:45]} 37... Kd6 {[%clk 0:10:11]} 38. Bc7+ {[%clk
0:19:39]} 38... Kxc7 {[%clk 0:10:17]} 0-1

[Variant "Standard"]
[Site "Europe Echecs"]

[Event "Championnat du monde jeunes U12F"]
[Date "2024.11.23"]
[White "Ordonez Alarcon, Daniela"]
[Black "Jacome Revelo, Daniela Alexandra"]
[WhiteElo "1606"]
[BlackElo "1764"]
[Round "8.36"]
[Result "1/2-1/2"]
[TimeControl "5400+30"]

1. d4 {[%clk 1:30:58]} 1... Nf6 {[%clk 1:30:45]} 2. c4 {[%clk 1:31:08]} 2... c5
{[%clk 1:30:41]} 3. d5 {[%clk 1:30:49]} 3... b5 {[%clk 1:29:42]} 4. cxb5 {[%clk
1:30:57]} 4... a6 {[%clk 1:29:31]} 5. bxa6 {[%clk 1:30:25]} 5... Bxa6 {[%clk
1:29:07]} 6. Nc3 {[%clk 1:29:31]} 6... g6 {[%clk 1:27:34]} 7. e4 {[%clk
1:27:54]} 7... Bxf1 {[%clk 1:26:41]} 8. Kxf1 {[%clk 1:28:19]} 8... d6 {[%clk
1:26:31]} 9. Nf3 {[%clk 1:27:55]} 9... Bg7 {[%clk 1:23:46]} 10. g3 {[%clk
1:25:20]} 10... O-O {[%clk 1:22:23]} 11. Kg2 {[%clk 1:20:49]} 11... Qb6 {[%clk
1:17:39]} 12. a4 {[%clk 1:17:32]} 12... Na6 {[%clk 1:12:56]} 13. Ne1 {[%clk
1:11:11]} 13... Rfb8 {[%clk 1:03:56]} 14. Nc2 {[%clk 0:58:05]} 14... Nb4 {[%clk
1:03:01]} 15. Re1 {[%clk 0:56:42]} 15... Nd7 {[%clk 1:00:10]} 16. Nb5 {[%clk
0:51:08]} 16... Qa5 {[%clk 0:56:20]} 17. Nxb4 {[%clk 0:40:24]} 17... Qxb4 {[%clk
0:51:13]} 18. Ra3 {[%clk 0:37:11]} 18... c4 {[%clk 0:42:22]} 19. Re2 {[%clk
0:33:52]} 19... Ne5 {[%clk 0:31:03]} 20. Bd2 {[%clk 0:32:36]} 20... Qc5 {[%clk
0:30:13]} 21. Be3 {[%clk 0:28:32]} 21... Qc8 {[%clk 0:29:45]} 22. Bd4 {[%clk
0:28:09]} 22... Nd3 {[%clk 0:28:42]} 23. Bxg7 {[%clk 0:26:28]} 23... Kxg7 {[%clk
0:29:01]} 24. Rc2 {[%clk 0:26:11]} 24... Qd7 {[%clk 0:19:27]} 25. Rxc4 {[%clk
0:22:24]} 25... Nc5 {[%clk 0:14:27]} 26. Ra1 {[%clk 0:17:22]} 26... Nxa4 {[%clk
0:13:43]} 27. Rcxa4 {[%clk 0:17:04]} 27... Rxa4 {[%clk 0:13:59]} 28. Qxa4 {[%clk
0:17:25]} 28... Qxb5 {[%clk 0:12:57]} 29. Qxb5 {[%clk 0:17:46]} 29... Rxb5
{[%clk 0:13:22]} 30. Rb1 {[%clk 0:17:07]} 30... Kf6 {[%clk 0:12:26]} 31. b4
{[%clk 0:16:25]} 31... Ke5 {[%clk 0:11:25]} 1/2-1/2

[Variant "Standard"]
[Site "Europe Echecs"]

[Event "Championnat du monde jeunes U12F"]
[Date "2024.11.23"]
[White "Istratova, Nika"]
[Black "Wang, Tianmu"]
[WhiteElo "1473"]
[BlackElo "1640"]
[Round "8.37"]
[Result "0-1"]
[TimeControl "5400+30"]

1. e4 {[%clk 1:30:59]} 1... e5 {[%clk 1:30:46]} 2. Nf3 {[%clk 1:31:22]} 2... Nc6
{[%clk 1:30:45]} 3. Nc3 {[%clk 1:31:39]} 3... Nf6 {[%clk 1:30:45]} 4. Bb5 {[%clk
1:31:58]} 4... Nd4 {[%clk 1:25:40]} 5. Nxd4 {[%clk 1:32:15]} 5... exd4 {[%clk
1:25:54]} 6. e5 {[%clk 1:31:53]} 6... dxc3 {[%clk 1:24:36]} 7. exf6 {[%clk
1:32:11]} 7... Qxf6 {[%clk 1:23:38]} 8. dxc3 {[%clk 1:32:02]} 8... c6 {[%clk
1:23:08]} 9. Bd3 {[%clk 1:30:18]} 9... Bc5 {[%clk 1:20:03]} 10. Qe2+ {[%clk
1:27:21]} 10... Be7 {[%clk 1:18:53]} 11. O-O {[%clk 1:26:17]} 11... O-O {[%clk
1:15:17]} 12. Re1 {[%clk 1:23:47]} 12... Re8 {[%clk 1:06:04]} 13. Qe4 {[%clk
1:16:39]} 13... g6 {[%clk 1:02:35]} 14. Bh6 {[%clk 1:15:30]} 14... d5 {[%clk
0:59:55]} 15. Qd4 {[%clk 1:10:29]} 15... Be6 {[%clk 0:55:05]} 16. Re3 {[%clk
0:53:08]} 16... c5 {[%clk 0:41:28]} 17. Qxf6 {[%clk 0:47:47]} 17... Bxf6 {[%clk
0:41:48]} 18. Bb5 {[%clk 0:44:44]} 18... Red8 {[%clk 0:41:18]} 19. Rf3 {[%clk
0:39:30]} 19... Be7 {[%clk 0:38:47]} 20. Be2 {[%clk 0:32:40]} 20... Bd6 {[%clk
0:32:30]} 21. h3 {[%clk 0:27:13]} 21... Re8 {[%clk 0:31:24]} 22. Bb5 {[%clk
0:25:58]} 22... Re7 {[%clk 0:29:34]} 23. Bg5 {[%clk 0:23:25]} 23... Rc7 {[%clk
0:29:17]} 24. Be2 {[%clk 0:22:36]} 24... c4 {[%clk 0:26:56]} 25. Bf4 {[%clk
0:21:59]} 25... Rd7 {[%clk 0:25:30]} 26. Bxd6 {[%clk 0:22:02]} 26... Rxd6 {[%clk
0:25:46]} 27. Rd1 {[%clk 0:19:47]} 27... Rad8 {[%clk 0:24:21]} 28. Rf4 {[%clk
0:17:56]} 28... Bf5 {[%clk 0:23:40]} 29. Rd2 {[%clk 0:17:55]} 29... b5 {[%clk
0:22:57]} 30. Rfd4 {[%clk 0:16:14]} 30... a5 {[%clk 0:21:58]} 31. b3 {[%clk
0:14:24]} 31... R6d7 {[%clk 0:19:53]} 32. a3 {[%clk 0:11:17]} 32... Be6 {[%clk
0:16:41]} 33. g4 {[%clk 0:09:31]} 33... Kf8 {[%clk 0:13:08]} 34. Kg2 {[%clk
0:07:23]} 34... Ke7 {[%clk 0:10:50]} 35. f4 {[%clk 0:05:59]} 35... f5 {[%clk
0:10:03]} 36. g5 {[%clk 0:05:48]} 36... Rc8 {[%clk 0:08:56]} 37. bxc4 {[%clk
0:04:26]} 37... bxc4 {[%clk 0:08:48]} 38. Rd1 {[%clk 0:03:19]} 38... Rb8 {[%clk
0:08:48]} 39. Ra1 {[%clk 0:03:24]} 39... Rb2 {[%clk 0:08:29]} 40. Rd2 {[%clk
0:02:25]} 40... d4 {[%clk 0:06:02]} 41. cxd4 {[%clk 0:01:48]} 41... c3 {[%clk
0:06:18]} 42. Rdd1 {[%clk 0:01:24]} 42... Rxc2 {[%clk 0:06:30]} 43. Kf3 {[%clk
0:01:07]} 43... Bd5+ {[%clk 0:05:41]} 44. Ke3 {[%clk 0:01:10]} 44... Kd6 {[%clk
0:05:30]} 45. Rdc1 {[%clk 0:00:52]} 45... Re7+ {[%clk 0:05:27]} 46. Kd3 {[%clk
0:00:50]} 46... Rcxe2 {[%clk 0:05:45]} 47. Rxc3 {[%clk 0:01:07]} 47... R7e3# 0-1

[Variant "Standard"]
[Site "Europe Echecs"]